[Event "*** SCC Grand Prix: Titled Tuesday Blitz"]
[Site "Chess.com"]
[Date "2020.10.06"]
[Round "8"]
[White "AlexOstrovskiy"]
[Black "KonstantinB_1983"]
[Result "1/2-1/2"]
[WhiteElo "2751"]
[BlackElo "2531"]
[TimeControl "180+1"]
[EndTime "11:36:38 PDT"]
[Termination "Game drawn - insufficient material"]

1. d4 {[%clk 0:03:00.9]} 1... d5 {[%clk 0:02:58.5]} 2. Bf4 {[%clk 0:03:00.6]}
2... c6 {[%clk 0:02:57.7]} 3. e3 {[%clk 0:02:59.8]} 3... Bf5 {[%clk 0:02:56.8]}
4. c4 {[%clk 0:02:58.9]} 4... dxc4 {[%clk 0:02:53.9]} 5. Bxc4 {[%clk 0:02:59.8]}
5... e6 {[%clk 0:02:53.1]} 6. Nc3 {[%clk 0:02:59.7]} 6... Nf6 {[%clk 0:02:52.1]}
7. Nf3 {[%clk 0:02:59.8]} 7... h6 {[%clk 0:02:51]} 8. h3 {[%clk 0:03:00]} 8...
Nbd7 {[%clk 0:02:51]} 9. O-O {[%clk 0:03:00.3]} 9... Be7 {[%clk 0:02:50.1]} 10.
Qe2 {[%clk 0:03:00.7]} 10... Ne4 {[%clk 0:02:49.2]} 11. Rfd1 {[%clk 0:02:53.6]}
11... O-O {[%clk 0:02:46.5]} 12. Rac1 {[%clk 0:02:52.9]} 12... Rc8 {[%clk
0:02:43.4]} 13. a3 {[%clk 0:02:52.7]} 13... Nb6 {[%clk 0:02:42.4]} 14. Nxe4
{[%clk 0:02:42.3]} 14... Bxe4 {[%clk 0:02:35.4]} 15. Ba2 {[%clk 0:02:42.2]}
15... Bd6 {[%clk 0:02:22.3]} 16. Ne5 {[%clk 0:02:42]} 16... Qe7 {[%clk
0:02:14.2]} 17. b4 {[%clk 0:02:24.3]} 17... Nd5 {[%clk 0:02:06.4]} 18. Bh2
{[%clk 0:02:24.1]} 18... f6 {[%clk 0:02:00.2]} 19. Nc4 {[%clk 0:02:16.2]} 19...
Bxh2+ {[%clk 0:01:59.2]} 20. Kxh2 {[%clk 0:02:17.1]} 20... Rfd8 {[%clk
0:01:55.3]} 21. Kg1 {[%clk 0:02:16.4]} 21... Kh8 {[%clk 0:01:48.6]} 22. Na5
{[%clk 0:02:16.7]} 22... Rb8 {[%clk 0:01:34.1]} 23. f3 {[%clk 0:02:15.6]} 23...
Bg6 {[%clk 0:01:32.8]} 24. e4 {[%clk 0:02:16.1]} 24... Nf4 {[%clk 0:01:27.9]}
25. Qe3 {[%clk 0:02:15.2]} 25... e5 {[%clk 0:01:27.4]} 26. dxe5 {[%clk
0:01:59.6]} 26... fxe5 {[%clk 0:01:19.9]} 27. Kh2 {[%clk 0:01:58.8]} 27... a6
{[%clk 0:01:15.6]} 28. Bb3 {[%clk 0:01:55.2]} 28... Qg5 {[%clk 0:01:14.3]} 29.
g3 {[%clk 0:01:50.8]} 29... Nxh3 {[%clk 0:01:06.2]} 30. Qxg5 {[%clk 0:01:32.8]}
30... Nxg5 {[%clk 0:01:04.9]} 31. Kg2 {[%clk 0:01:21.7]} 31... Rf8 {[%clk
0:01:03.7]} 32. Rf1 {[%clk 0:00:58.2]} 32... Nxf3 {[%clk 0:00:45.9]} 33. Rxf3
{[%clk 0:00:58.3]} 33... Bxe4 {[%clk 0:00:44.9]} 34. Rc3 {[%clk 0:00:44.2]}
34... Rxf3 {[%clk 0:00:40]} 35. Rxf3 {[%clk 0:00:45.1]} 35... Rf8 {[%clk
0:00:39.3]} 36. Bd1 {[%clk 0:00:45.3]} 36... g5 {[%clk 0:00:36.3]} 37. g4 {[%clk
0:00:38.8]} 37... Rd8 {[%clk 0:00:26.3]} 38. Be2 {[%clk 0:00:36]} 38... Rd2
{[%clk 0:00:24.5]} 39. Kf2 {[%clk 0:00:35.3]} 39... Bxf3 {[%clk 0:00:23.3]} 40.
Kxf3 {[%clk 0:00:36.2]} 40... Ra2 {[%clk 0:00:21.9]} 41. Nxb7 {[%clk 0:00:32.3]}
41... Rxa3+ {[%clk 0:00:21.1]} 42. Ke4 {[%clk 0:00:24.6]} 42... Ra4 {[%clk
0:00:21]} 43. Kxe5 {[%clk 0:00:19.6]} 43... Rxb4 {[%clk 0:00:20.3]} 44. Nc5
{[%clk 0:00:20.2]} 44... a5 {[%clk 0:00:19]} 45. Kf6 {[%clk 0:00:13.6]} 45... a4
{[%clk 0:00:16.5]} 46. Kg6 {[%clk 0:00:07.5]} 46... a3 {[%clk 0:00:15.9]} 47.
Nd3 {[%clk 0:00:04.1]} 47... Rb7 {[%clk 0:00:10.5]} 48. Ne5 {[%clk 0:00:04.2]}
48... a2 {[%clk 0:00:09.5]} 49. Kxh6 {[%clk 0:00:01.1]} 49... a1=Q {[%clk
0:00:07.6]} 50. Ng6+ {[%clk 0:00:02]} 50... Kg8 {[%clk 0:00:06.4]} 51. Bc4+
{[%clk 0:00:02.9]} 51... Rf7 {[%clk 0:00:05.3]} 52. Kxg5 {[%clk 0:00:02.2]}
52... Qg7 {[%clk 0:00:04.3]} 53. Bxf7+ {[%clk 0:00:01.8]} 53... Qxf7 {[%clk
0:00:03.8]} 54. Kh6 {[%clk 0:00:01.3]} 54... Qxg6+ {[%clk 0:00:03.3]} 55. Kxg6
{[%clk 0:00:02.2]} 55... c5 {[%clk 0:00:03.4]} 56. Kf5 {[%clk 0:00:02.7]} 56...
Kg7 {[%clk 0:00:03.1]} 57. Ke4 {[%clk 0:00:03]} 57... Kg6 {[%clk 0:00:03.1]} 58.
Kd5 {[%clk 0:00:03.5]} 58... Kg5 {[%clk 0:00:03.2]} 59. Kxc5 {[%clk 0:00:04.1]}
59... Kxg4 {[%clk 0:00:03.5]} 1/2-1/2

[Event "*** SCC Grand Prix: Titled Tuesday Blitz"]
[Site "Chess.com"]
[Date "2020.10.06"]
[Round "8"]
[White "Harsha_Bharathakoti"]
[Black "Larina_Marija"]
[Result "1-0"]
[WhiteElo "2753"]
[BlackElo "2248"]
[TimeControl "180+1"]
[EndTime "11:36:41 PDT"]
[Termination "Harsha_Bharathakoti won on time"]

1. Nf3 {[%clk 0:03:00.9]} 1... f5 {[%clk 0:02:59.8]} 2. d3 {[%clk 0:03:00.5]}
2... d6 {[%clk 0:02:57.2]} 3. d4 {[%clk 0:03:00.6]} 3... Nf6 {[%clk 0:02:48.2]}
4. g3 {[%clk 0:02:56]} 4... g6 {[%clk 0:02:47.9]} 5. Bg2 {[%clk 0:02:56.6]} 5...
Bg7 {[%clk 0:02:48.4]} 6. O-O {[%clk 0:02:57.5]} 6... O-O {[%clk 0:02:48.8]} 7.
b3 {[%clk 0:02:58.4]} 7... e5 {[%clk 0:02:43.1]} 8. dxe5 {[%clk 0:02:57.3]} 8...
dxe5 {[%clk 0:02:44]} 9. Ba3 {[%clk 0:02:58.1]} 9... Qxd1 {[%clk 0:02:34.7]} 10.
Rxd1 {[%clk 0:02:59]} 10... Re8 {[%clk 0:02:35.4]} 11. Nc3 {[%clk 0:02:57.9]}
11... e4 {[%clk 0:02:29]} 12. Nd4 {[%clk 0:02:57.7]} 12... c6 {[%clk 0:02:23.3]}
13. e3 {[%clk 0:02:55.6]} 13... Na6 {[%clk 0:02:19.4]} 14. Na4 {[%clk
0:02:55.9]} 14... Ng4 {[%clk 0:02:06.2]} 15. Bf1 {[%clk 0:02:42.6]} 15... Nc7
{[%clk 0:01:59.6]} 16. Bd6 {[%clk 0:02:33.5]} 16... Ne6 {[%clk 0:01:55]} 17.
Nxe6 {[%clk 0:01:48.1]} 17... Bxe6 {[%clk 0:01:42.3]} 18. Rac1 {[%clk
0:01:45.6]} 18... b6 {[%clk 0:01:41.6]} 19. Ba6 {[%clk 0:01:35.8]} 19... Rad8
{[%clk 0:01:33.4]} 20. Bb7 {[%clk 0:01:19.6]} 20... c5 {[%clk 0:01:15.6]} 21.
Bc6 {[%clk 0:01:16.3]} 21... Bd7 {[%clk 0:01:11.6]} 22. Bc7 {[%clk 0:01:14.4]}
22... Bxc6 {[%clk 0:00:59.3]} 23. Rxd8 {[%clk 0:01:12.7]} 23... Rxd8 {[%clk
0:00:59.2]} 24. Bxd8 {[%clk 0:01:13.6]} 24... Ne5 {[%clk 0:00:57.6]} 25. Bc7
{[%clk 0:01:04.9]} 25... Nf3+ {[%clk 0:00:56.6]} 26. Kg2 {[%clk 0:01:03.4]}
26... c4 {[%clk 0:00:44.6]} 27. Rd1 {[%clk 0:00:58.1]} 27... b5 {[%clk 0:00:38]}
28. Nc5 {[%clk 0:00:54]} 28... Bf8 {[%clk 0:00:36]} 29. Rd8 {[%clk 0:00:48.9]}
29... Kf7 {[%clk 0:00:36.2]} 30. Bd6 {[%clk 0:00:49.1]} 30... Bg7 {[%clk
0:00:23.3]} 31. Rc8 {[%clk 0:00:49]} 31... Bd5 {[%clk 0:00:21]} 32. Rc7+ {[%clk
0:00:49.3]} 32... Kg8 {[%clk 0:00:20.2]} 33. Rxa7 {[%clk 0:00:14.5]} 33... Ne1+
{[%clk 0:00:20]} 34. Kf1 {[%clk 0:00:15.1]} 34... Nxc2 {[%clk 0:00:20.5]} 35.
Nd7 {[%clk 0:00:14]} 35... cxb3 {[%clk 0:00:18.8]} 36. axb3 {[%clk 0:00:14.9]}
36... Bxb3 {[%clk 0:00:18]} 37. Ne5 {[%clk 0:00:13.2]} 37... Bxe5 {[%clk
0:00:16.9]} 38. Bxe5 {[%clk 0:00:14.1]} 38... Bc4+ {[%clk 0:00:17.1]} 39. Kg2
{[%clk 0:00:14.8]} 39... Ne1+ {[%clk 0:00:17.1]} 40. Kh1 {[%clk 0:00:12.7]}
40... Be2 {[%clk 0:00:12.7]} 41. Bc3 {[%clk 0:00:10.1]} 41... Nd3 {[%clk
0:00:11.9]} 42. Kg1 {[%clk 0:00:06.6]} 42... b4 {[%clk 0:00:11.4]} 43. Bd4
{[%clk 0:00:07.3]} 43... b3 {[%clk 0:00:11.2]} 44. Rg7+ {[%clk 0:00:05.8]} 44...
Kf8 {[%clk 0:00:11]} 45. Rxh7 {[%clk 0:00:06.6]} 45... Bd1 {[%clk 0:00:07.4]}
46. Rb7 {[%clk 0:00:07]} 46... Bc2 {[%clk 0:00:06.8]} 47. h3 {[%clk 0:00:05.5]}
47... Ke8 {[%clk 0:00:06.3]} 48. g4 {[%clk 0:00:06.2]} 48... Kd8 {[%clk
0:00:05.6]} 49. gxf5 {[%clk 0:00:06]} 49... gxf5 {[%clk 0:00:06.5]} 50. h4
{[%clk 0:00:06.5]} 50... Kc8 {[%clk 0:00:07]} 51. Rb5 {[%clk 0:00:06.4]} 51...
Kd7 {[%clk 0:00:05.9]} 52. h5 {[%clk 0:00:07.1]} 52... Kc6 {[%clk 0:00:04.8]}
53. Rb6+ {[%clk 0:00:07.6]} 53... Kd5 {[%clk 0:00:04.1]} 54. h6 {[%clk
0:00:07.8]} 54... Kc4 {[%clk 0:00:01.4]} 55. h7 {[%clk 0:00:07.8]} 55... Nb4
{[%clk 0:00:01.7]} 56. h8=Q {[%clk 0:00:07.3]} 1-0

[Event "*** SCC Grand Prix: Titled Tuesday Blitz"]
[Site "Chess.com"]
[Date "2020.10.06"]
[Round "8"]
[White "Artyom_ChessMate"]
[Black "MasterSonnevanck23"]
[Result "1-0"]
[WhiteElo "2516"]
[BlackElo "2362"]
[TimeControl "180+1"]
[EndTime "11:36:47 PDT"]
[Termination "Artyom_ChessMate won on time"]

1. e4 {[%clk 0:03:00.9]} 1... c5 {[%clk 0:02:59]} 2. Nc3 {[%clk 0:02:54]} 2...
g6 {[%clk 0:02:55.7]} 3. d4 {[%clk 0:02:53.7]} 3... cxd4 {[%clk 0:02:54]} 4.
Qxd4 {[%clk 0:02:54.6]} 4... Nf6 {[%clk 0:02:52.8]} 5. Nf3 {[%clk 0:02:52.8]}
5... Nc6 {[%clk 0:02:51.9]} 6. Qa4 {[%clk 0:02:53]} 6... d6 {[%clk 0:02:48]} 7.
e5 {[%clk 0:02:51.9]} 7... dxe5 {[%clk 0:02:47.7]} 8. Nxe5 {[%clk 0:02:52.8]}
8... Bd7 {[%clk 0:02:47.2]} 9. Nxd7 {[%clk 0:02:52.8]} 9... Qxd7 {[%clk
0:02:46.7]} 10. Be3 {[%clk 0:02:53.7]} 10... Bg7 {[%clk 0:02:43.7]} 11. Bb5
{[%clk 0:02:51]} 11... O-O {[%clk 0:02:42.1]} 12. Rd1 {[%clk 0:02:50.8]} 12...
Qc8 {[%clk 0:02:39.8]} 13. O-O {[%clk 0:02:51.7]} 13... Ne5 {[%clk 0:02:27.4]}
14. Rfe1 {[%clk 0:02:43.9]} 14... a6 {[%clk 0:02:25]} 15. Be2 {[%clk 0:02:43.9]}
15... b5 {[%clk 0:02:22.6]} 16. Qh4 {[%clk 0:02:43.2]} 16... Nc4 {[%clk
0:02:17.8]} 17. Bc1 {[%clk 0:02:42.3]} 17... b4 {[%clk 0:02:13.2]} 18. Bxc4
{[%clk 0:02:38.8]} 18... bxc3 {[%clk 0:02:12.4]} 19. b3 {[%clk 0:02:35]} 19...
Qb7 {[%clk 0:02:03.1]} 20. Ba3 {[%clk 0:02:32.3]} 20... Rfe8 {[%clk 0:01:59.1]}
21. Qf4 {[%clk 0:02:22.8]} 21... e6 {[%clk 0:01:55.3]} 22. Bd6 {[%clk
0:02:18.8]} 22... Nd5 {[%clk 0:01:52]} 23. Qf3 {[%clk 0:02:12.8]} 23... Rad8
{[%clk 0:01:43.9]} 24. Ba3 {[%clk 0:01:48.3]} 24... Qc6 {[%clk 0:01:33.6]} 25.
h3 {[%clk 0:01:43]} 25... h5 {[%clk 0:01:27.3]} 26. Rd3 {[%clk 0:01:30.6]} 26...
h4 {[%clk 0:01:19]} 27. Red1 {[%clk 0:01:15.3]} 27... Qc7 {[%clk 0:01:12.5]} 28.
Bxd5 {[%clk 0:01:04.9]} 28... exd5 {[%clk 0:01:11.8]} 29. Rxd5 {[%clk
0:01:05.7]} 29... Rxd5 {[%clk 0:01:10.6]} 30. Qxd5 {[%clk 0:01:06.6]} 30... Qf4
{[%clk 0:01:09.7]} 31. Bd6 {[%clk 0:00:58]} 31... Qe4 {[%clk 0:00:54.1]} 32.
Qxe4 {[%clk 0:00:53.7]} 32... Rxe4 {[%clk 0:00:53.7]} 33. Kf1 {[%clk 0:00:54.6]}
33... Bf6 {[%clk 0:00:49.5]} 34. Bc5 {[%clk 0:00:52.7]} 34... Kg7 {[%clk
0:00:46.4]} 35. Be3 {[%clk 0:00:52.4]} 35... Re6 {[%clk 0:00:41.9]} 36. Ke2
{[%clk 0:00:50.5]} 36... Rc6 {[%clk 0:00:37.2]} 37. Rd5 {[%clk 0:00:49.8]} 37...
Re6 {[%clk 0:00:34.8]} 38. Kd3 {[%clk 0:00:49]} 38... Rc6 {[%clk 0:00:34.1]} 39.
a4 {[%clk 0:00:48.8]} 39... Re6 {[%clk 0:00:31.5]} 40. a5 {[%clk 0:00:48.4]}
40... Rc6 {[%clk 0:00:31.3]} 41. b4 {[%clk 0:00:43.7]} 41... Re6 {[%clk
0:00:30.6]} 42. Bd4 {[%clk 0:00:39]} 42... Bxd4 {[%clk 0:00:25.3]} 43. Rxd4
{[%clk 0:00:38.7]} 43... Re1 {[%clk 0:00:24.5]} 44. Kxc3 {[%clk 0:00:36.5]}
44... Re2 {[%clk 0:00:24.5]} 45. Rf4 {[%clk 0:00:33.4]} 45... g5 {[%clk
0:00:22.2]} 46. Rf3 {[%clk 0:00:32.9]} 46... Kg6 {[%clk 0:00:19.8]} 47. b5
{[%clk 0:00:31.8]} 47... axb5 {[%clk 0:00:18.8]} 48. a6 {[%clk 0:00:32.7]} 48...
Re6 {[%clk 0:00:18.5]} 49. Kb4 {[%clk 0:00:28.7]} 49... Rxa6 {[%clk 0:00:17.9]}
50. Kxb5 {[%clk 0:00:29.3]} 50... Ra2 {[%clk 0:00:17.5]} 51. c3 {[%clk
0:00:28.4]} 51... Rb2+ {[%clk 0:00:15.1]} 52. Ka4 {[%clk 0:00:27.8]} 52... f5
{[%clk 0:00:14.2]} 53. c4 {[%clk 0:00:28]} 53... Rc2 {[%clk 0:00:12.5]} 54. Kb3
{[%clk 0:00:27.1]} 54... Re2 {[%clk 0:00:12.3]} 55. c5 {[%clk 0:00:25.2]} 55...
g4 {[%clk 0:00:11.3]} 56. hxg4 {[%clk 0:00:21.4]} 56... fxg4 {[%clk 0:00:11.1]}
57. Rc3 {[%clk 0:00:15.9]} 57... Rxf2 {[%clk 0:00:05.7]} 58. c6 {[%clk
0:00:16.1]} 58... Rf8 {[%clk 0:00:05.1]} 59. Kc4 {[%clk 0:00:16.2]} 59... Kg5
{[%clk 0:00:04.8]} 60. Kd5 {[%clk 0:00:16.5]} 60... Kf4 {[%clk 0:00:02.2]} 61.
c7 {[%clk 0:00:14.9]} 1-0

[Event "*** SCC Grand Prix: Titled Tuesday Blitz"]
[Site "Chess.com"]
[Date "2020.10.06"]
[Round "8"]
[White "ChessicallyInclined"]
[Black "ferch1ni"]
[Result "0-1"]
[WhiteElo "2505"]
[BlackElo "2384"]
[TimeControl "180+1"]
[EndTime "11:36:47 PDT"]
[Termination "ferch1ni won on time"]

1. d4 {[%clk 0:03:00.9]} 1... Nf6 {[%clk 0:02:58]} 2. c4 {[%clk 0:03:01]} 2...
g6 {[%clk 0:02:57.4]} 3. Nc3 {[%clk 0:03:00]} 3... d5 {[%clk 0:02:57.8]} 4. Nf3
{[%clk 0:02:59.2]} 4... Bg7 {[%clk 0:02:55.2]} 5. Qb3 {[%clk 0:02:59.6]} 5...
dxc4 {[%clk 0:02:47.8]} 6. Qxc4 {[%clk 0:03:00.5]} 6... O-O {[%clk 0:02:47.8]}
7. e4 {[%clk 0:02:59.4]} 7... c5 {[%clk 0:02:47.5]} 8. d5 {[%clk 0:02:59.3]}
8... e6 {[%clk 0:02:44.5]} 9. Be2 {[%clk 0:02:58.6]} 9... exd5 {[%clk
0:02:44.7]} 10. exd5 {[%clk 0:02:59.5]} 10... Nbd7 {[%clk 0:02:44.8]} 11. O-O
{[%clk 0:02:59.5]} 11... Nb6 {[%clk 0:02:44.8]} 12. Qh4 {[%clk 0:02:55.9]} 12...
Bf5 {[%clk 0:02:41.2]} 13. Bg5 {[%clk 0:02:53.7]} 13... Nbd7 {[%clk 0:02:38.9]}
14. Rad1 {[%clk 0:02:43.3]} 14... Qb6 {[%clk 0:02:38]} 15. b3 {[%clk 0:02:27.7]}
15... Rfe8 {[%clk 0:01:54.6]} 16. Bc4 {[%clk 0:02:24]} 16... a6 {[%clk
0:01:50.6]} 17. Bh6 {[%clk 0:02:13.7]} 17... Bh8 {[%clk 0:01:46.2]} 18. h3
{[%clk 0:02:10.3]} 18... Ne4 {[%clk 0:01:36.7]} 19. Nxe4 {[%clk 0:02:01.9]}
19... Rxe4 {[%clk 0:01:37.6]} 20. Qg3 {[%clk 0:02:01.8]} 20... Ree8 {[%clk
0:01:30.4]} 21. d6 {[%clk 0:01:54.3]} 21... Qa5 {[%clk 0:01:08.4]} 22. a4 {[%clk
0:01:48.7]} 22... b5 {[%clk 0:01:06.8]} 23. axb5 {[%clk 0:01:48.8]} 23... axb5
{[%clk 0:01:07.7]} 24. Bd5 {[%clk 0:01:49.4]} 24... Rac8 {[%clk 0:01:08]} 25.
Ng5 {[%clk 0:01:48.7]} 25... Be6 {[%clk 0:00:54.9]} 26. Bxe6 {[%clk 0:01:45.8]}
26... fxe6 {[%clk 0:00:54.8]} 27. Qf4 {[%clk 0:01:41.8]} 27... Bf6 {[%clk
0:00:48.8]} 28. Ne4 {[%clk 0:01:38.6]} 28... Be5 {[%clk 0:00:44.9]} 29. Qe3
{[%clk 0:01:30.7]} 29... c4 {[%clk 0:00:43.6]} 30. bxc4 {[%clk 0:01:31.6]} 30...
bxc4 {[%clk 0:00:44]} 31. f4 {[%clk 0:01:30.6]} 31... Bh8 {[%clk 0:00:42.5]} 32.
Ng5 {[%clk 0:01:26.2]} 32... c3 {[%clk 0:00:34.4]} 33. Kh1 {[%clk 0:01:17.9]}
33... c2 {[%clk 0:00:33.7]} 34. Rc1 {[%clk 0:01:17.3]} 34... Qc5 {[%clk
0:00:27.9]} 35. Qd3 {[%clk 0:01:13.3]} 35... Rc6 {[%clk 0:00:22]} 36. h4 {[%clk
0:00:53.7]} 36... Rec8 {[%clk 0:00:19.9]} 37. Ne4 {[%clk 0:00:35.1]} 37... Qd5
{[%clk 0:00:18.1]} 38. Qf3 {[%clk 0:00:30.3]} 38... Bb2 {[%clk 0:00:17]} 39. Bg5
{[%clk 0:00:21.2]} 39... Rc4 {[%clk 0:00:16.8]} 40. Nf6+ {[%clk 0:00:13.8]}
40... Nxf6 {[%clk 0:00:16.5]} 41. Qxd5 {[%clk 0:00:10.7]} 41... exd5 {[%clk
0:00:13.3]} 42. f5 {[%clk 0:00:10.4]} 42... Rd8 {[%clk 0:00:11.4]} 43. fxg6
{[%clk 0:00:09.8]} 43... Rxd6 {[%clk 0:00:11.6]} 44. gxh7+ {[%clk 0:00:09.7]}
44... Kxh7 {[%clk 0:00:11.9]} 45. Rce1 {[%clk 0:00:10]} 45... Kg6 {[%clk
0:00:11.1]} 46. Bd2 {[%clk 0:00:09.1]} 46... Ne4 {[%clk 0:00:10.2]} 47. Bc1
{[%clk 0:00:08.8]} 47... Bxc1 {[%clk 0:00:10]} 48. Rxc1 {[%clk 0:00:09.7]} 48...
Rf6 {[%clk 0:00:10.2]} 49. Rfe1 {[%clk 0:00:08.1]} 49... Rf2 {[%clk 0:00:09]}
50. Re3 {[%clk 0:00:08.5]} 50... Rd2 {[%clk 0:00:08.9]} 51. Kh2 {[%clk
0:00:08.6]} 51... Rd1 {[%clk 0:00:09.1]} 52. Rxc2 {[%clk 0:00:07.8]} 52... Rxc2
{[%clk 0:00:10]} 53. h5+ {[%clk 0:00:07.1]} 53... Kg5 {[%clk 0:00:10]} 54. h6
{[%clk 0:00:06.1]} 54... Rdd2 {[%clk 0:00:10.4]} 55. h7 {[%clk 0:00:05.8]} 55...
Rxg2+ {[%clk 0:00:10.3]} 56. Kh1 {[%clk 0:00:05.9]} 56... Rh2+ {[%clk
0:00:10.2]} 57. Kg1 {[%clk 0:00:06.3]} 57... Rcg2+ {[%clk 0:00:10.4]} 58. Kf1
{[%clk 0:00:06.9]} 58... Rf2+ {[%clk 0:00:10.8]} 59. Kg1 {[%clk 0:00:07]} 59...
Rfg2+ {[%clk 0:00:11.2]} 60. Kf1 {[%clk 0:00:07.3]} 60... Kf4 {[%clk 0:00:10.9]}
61. h8=Q {[%clk 0:00:04.4]} 61... Rxh8 {[%clk 0:00:10.7]} 62. Rd3 {[%clk
0:00:01.6]} 62... Rb2 {[%clk 0:00:08.5]} 63. Kg1 {[%clk 0:00:01.2]} 63... Rhh2
{[%clk 0:00:08.4]} 64. Re3 {[%clk 0:00:01.2]} 64... Rhg2+ {[%clk 0:00:08.5]} 0-1

[Event "*** SCC Grand Prix: Titled Tuesday Blitz"]
[Site "Chess.com"]
[Date "2020.10.06"]
[Round "8"]
[White "zmeeed67"]
[Black "vladimirdamjanovic"]
[Result "1-0"]
[WhiteElo "2386"]
[BlackElo "2528"]
[TimeControl "180+1"]
[EndTime "11:36:55 PDT"]
[Termination "zmeeed67 won by checkmate"]

1. e4 {[%clk 0:03:00.9]} 1... c5 {[%clk 0:02:59.4]} 2. g3 {[%clk 0:03:00.8]}
2... d6 {[%clk 0:02:57.9]} 3. Bg2 {[%clk 0:03:00.4]} 3... Nc6 {[%clk 0:02:58.4]}
4. Ne2 {[%clk 0:03:00.8]} 4... g6 {[%clk 0:02:58.8]} 5. O-O {[%clk 0:03:01.2]}
5... Bg7 {[%clk 0:02:59.4]} 6. Nbc3 {[%clk 0:03:01.5]} 6... Bg4 {[%clk
0:02:59.6]} 7. h3 {[%clk 0:03:00.3]} 7... Bxe2 {[%clk 0:02:59.1]} 8. Nxe2 {[%clk
0:02:59.7]} 8... e6 {[%clk 0:02:59.5]} 9. c3 {[%clk 0:02:59.2]} 9... Nge7 {[%clk
0:02:59.8]} 10. d3 {[%clk 0:02:57.9]} 10... O-O {[%clk 0:02:59.2]} 11. Kh2
{[%clk 0:02:49.4]} 11... b5 {[%clk 0:02:58.8]} 12. a3 {[%clk 0:02:45.7]} 12...
a5 {[%clk 0:02:58.2]} 13. d4 {[%clk 0:02:44.2]} 13... cxd4 {[%clk 0:02:57.4]}
14. cxd4 {[%clk 0:02:43.3]} 14... d5 {[%clk 0:02:57.6]} 15. e5 {[%clk
0:02:37.2]} 15... Qb6 {[%clk 0:02:53]} 16. g4 {[%clk 0:02:25.9]} 16... Nxd4
{[%clk 0:02:43]} 17. Be3 {[%clk 0:02:20.4]} 17... Bxe5+ {[%clk 0:02:36.6]} 18.
f4 {[%clk 0:02:20.4]} 18... Bg7 {[%clk 0:01:53.4]} 19. Bxd4 {[%clk 0:02:18.8]}
19... Bxd4 {[%clk 0:01:52.9]} 20. Qxd4 {[%clk 0:02:17.4]} 20... Qd6 {[%clk
0:01:47.8]} 21. Kg1 {[%clk 0:02:06.8]} 21... Rfc8 {[%clk 0:01:44.5]} 22. Rac1
{[%clk 0:02:03]} 22... Rc4 {[%clk 0:01:43.9]} 23. Rxc4 {[%clk 0:02:01.7]} 23...
bxc4 {[%clk 0:01:44.8]} 24. Rd1 {[%clk 0:01:25.8]} 24... Rb8 {[%clk 0:01:37.4]}
25. Rd2 {[%clk 0:01:24.6]} 25... Qb6 {[%clk 0:01:24.5]} 26. Qxb6 {[%clk
0:01:20.7]} 26... Rxb6 {[%clk 0:01:25.4]} 27. Kf2 {[%clk 0:01:11.1]} 27... Nc6
{[%clk 0:01:24.6]} 28. Ke3 {[%clk 0:01:07.6]} 28... Rb3+ {[%clk 0:01:22.3]} 29.
Kf2 {[%clk 0:01:04.5]} 29... Kf8 {[%clk 0:01:11]} 30. f5 {[%clk 0:01:04.5]}
30... Ke7 {[%clk 0:01:06.3]} 31. fxe6 {[%clk 0:01:03.9]} 31... fxe6 {[%clk
0:01:07.2]} 32. Ke1 {[%clk 0:00:51.5]} 32... Kd6 {[%clk 0:00:54.8]} 33. Kd1
{[%clk 0:00:49.8]} 33... Kc5 {[%clk 0:00:52.7]} 34. Kc2 {[%clk 0:00:49.2]} 34...
g5 {[%clk 0:00:45.6]} 35. Rd1 {[%clk 0:00:39.3]} 35... Re3 {[%clk 0:00:44.1]}
36. Kd2 {[%clk 0:00:37.7]} 36... Rb3 {[%clk 0:00:44]} 37. Kc2 {[%clk 0:00:35.3]}
37... e5 {[%clk 0:00:40.6]} 38. Rxd5+ {[%clk 0:00:33.1]} 38... Kb6 {[%clk
0:00:39.3]} 39. Rd6 {[%clk 0:00:28.7]} 39... Re3 {[%clk 0:00:34]} 40. Rxc6+
{[%clk 0:00:27.8]} 40... Kb5 {[%clk 0:00:34.6]} 41. Kd2 {[%clk 0:00:28]} 41...
Rb3 {[%clk 0:00:34.2]} 42. Re6 {[%clk 0:00:18.6]} 42... Rxb2+ {[%clk 0:00:33.6]}
43. Ke1 {[%clk 0:00:18.8]} 43... Ka4 {[%clk 0:00:31.4]} 44. Rxe5 {[%clk
0:00:18.5]} 44... Rc2 {[%clk 0:00:25.8]} 45. Rxg5 {[%clk 0:00:15.4]} 45... c3
{[%clk 0:00:23.7]} 46. Rc5 {[%clk 0:00:14.5]} 46... Kxa3 {[%clk 0:00:15.7]} 47.
Rxc3+ {[%clk 0:00:13.8]} 47... Rxc3 {[%clk 0:00:16.2]} 48. Nxc3 {[%clk
0:00:14.2]} 48... Kb2 {[%clk 0:00:16.8]} 49. Kd2 {[%clk 0:00:14]} 49... Kb3
{[%clk 0:00:15.7]} 50. g5 {[%clk 0:00:13.8]} 50... Kc4 {[%clk 0:00:15.4]} 51.
Be4 {[%clk 0:00:14]} 51... Kd4 {[%clk 0:00:15.1]} 52. Bxh7 {[%clk 0:00:13.7]}
52... Ke5 {[%clk 0:00:16]} 53. Bd3 {[%clk 0:00:13.1]} 53... Ke6 {[%clk
0:00:14.9]} 54. h4 {[%clk 0:00:13.3]} 54... Kf7 {[%clk 0:00:15.6]} 55. h5 {[%clk
0:00:13.7]} 55... Kg7 {[%clk 0:00:16.2]} 56. h6+ {[%clk 0:00:13.7]} 56... Kh8
{[%clk 0:00:17.1]} 57. g6 {[%clk 0:00:13.6]} 57... a4 {[%clk 0:00:18]} 58. Nxa4
{[%clk 0:00:12.7]} 58... Kg8 {[%clk 0:00:17.7]} 59. Ke3 {[%clk 0:00:13]} 59...
Kh8 {[%clk 0:00:17.8]} 60. Kf4 {[%clk 0:00:13.4]} 60... Kg8 {[%clk 0:00:18.7]}
61. Nc5 {[%clk 0:00:13.8]} 61... Kh8 {[%clk 0:00:19.6]} 62. Nd7 {[%clk
0:00:14.1]} 62... Kg8 {[%clk 0:00:20.5]} 63. g7 {[%clk 0:00:11.3]} 63... Kf7
{[%clk 0:00:20.2]} 64. Nf6 {[%clk 0:00:09.1]} 64... Ke6 {[%clk 0:00:18.3]} 65.
g8=Q+ {[%clk 0:00:08.8]} 65... Ke7 {[%clk 0:00:18.6]} 66. Nd5+ {[%clk
0:00:07.3]} 66... Kd6 {[%clk 0:00:18.8]} 67. Ke4 {[%clk 0:00:06.9]} 67... Kc5
{[%clk 0:00:19]} 68. Qc8+ {[%clk 0:00:05.4]} 68... Kd6 {[%clk 0:00:18.2]} 69.
Ne3 {[%clk 0:00:03.1]} 69... Ke7 {[%clk 0:00:17]} 70. h7 {[%clk 0:00:03.6]}
70... Kf6 {[%clk 0:00:17.9]} 71. h8=Q+ {[%clk 0:00:03.9]} 71... Kg5 {[%clk
0:00:18.6]} 72. Qf5# {[%clk 0:00:03.8]} 1-0